bitfinex-derivatives/quotes_BTCF0:USTF0_20251128
["timestamp","ask_amount","ask_price","bid_price","bid_amount"]
[1764327894658,0.37836,91807.0,91806.0,0.30209]
[1764327895146,0.42074703,91807.0,91806.0,0.30209]
[1764327895348,0.42074827,91807.0,91806.0,0.001]
[1764327896654,0.0476151,91793.0,91792.0,0.01745959]
[1764327896855,0.0476161,91785.0,91784.0,0.39685]
[1764327897054,0.4676161,91785.0,91784.0,0.39685]
[1764327898754,0.4676161,91785.0,91784.0,0.40285]
[1764327898953,0.4676161,91785.0,91784.0,0.40385]
[1764327899154,0.45672,91785.0,91784.0,0.40385]
[1764327899453,0.43836,91785.0,91784.0,0.40385]
[1764327899954,0.0108954,91791.0,91790.0,0.30109]
[1764327900158,0.38,91791.0,91790.0,0.30109]
[1764327900658,0.41672,91791.0,91790.0,0.30109]
[1764327901164,0.03672,91785.0,91784.0,0.41978422]
[1764327901354,0.47672,91785.0,91784.0,0.41978422]
[1764327901865,0.47672,91785.0,91784.0,0.41378422]
[1764327902365,0.47672,91785.0,91784.0,0.26677422]
[1764327902556,0.50075119,91785.0,91784.0,0.02093422]
[1764327902754,0.0108969,91778.0,91764.0,0.3608]
[1764327903059,1.00836809,91778.0,91777.0,0.14351147]
[1764327903361,1.00836809,91778.0,91777.0,0.30019147]
[1764327903564,0.99747119,91778.0,91777.0,0.30019147]
[1764327904060,0.99747119,91778.0,91777.0,0.30119147]
[1764327904454,0.44483119,91778.0,91777.0,0.30119147]
[1764327904656,0.7408,91778.0,91777.0,0.3180999]
[1764327904854,0.7408,91778.0,91777.0,0.3170999]
[1764327905155,0.76483855,91778.0,91777.0,0.3190999]
[1764327905767,0.7408,91778.0,91777.0,0.3190999]
[1764327906164,0.76484446,91778.0,91777.0,0.3190999]
[1764327906360,0.17264,91780.0,91779.0,0.30005]
[1764327906562,0.3608,91787.0,91786.0,0.30005]
[1764327906753,0.41403875,91787.0,91786.0,0.30005]
[1764327907962,0.77483875,91787.0,91786.0,0.30005]
[1764327908259,0.7508,91787.0,91786.0,0.30005]
[1764327908460,0.7518,91787.0,91786.0,0.30005]
[1764327912960,0.7518,91787.0,91782.0,0.09398]
[1764327913166,0.0108969,91778.0,91777.0,0.00014147]
[1764327913464,0.0108969,91778.0,91773.0,0.01733104]
[1764327913465,0.0108974,91774.0,91773.0,0.01733104]
[1764327913659,0.0108974,91774.0,91764.0,0.3608]
[1764327913660,0.0108982,91767.0,91764.0,0.3608]
[1764327913859,0.9443382,91767.0,91755.0,0.09576]
[1764327914063,0.9443382,91767.0,91765.0,0.01758785]
[1764327914468,0.94447911,91767.0,91765.0,0.01758785]
[1764327914975,0.94447911,91767.0,91766.0,0.27674243]
[1764327915363,0.94447911,91767.0,91766.0,0.00027243]
[1764327915562,0.94547911,91767.0,91766.0,0.00027243]
[1764327915972,0.0108995,91756.0,91755.0,0.09576]
[1764327916173,0.57366568,91756.0,91755.0,0.09576]
[1764327916378,0.57366568,91756.0,91755.0,0.35652]
[1764327917675,0.57366568,91756.0,91755.0,0.37405738]
[1764327917858,0.57366568,91756.0,91755.0,0.37605738]
[1764327918064,0.57366568,91756.0,91755.0,0.11529738]
[1764327919175,0.57366568,91756.0,91755.0,0.01953738]
[1764327919565,0.57366568,91756.0,91755.0,0.22570738]
[1764327919770,0.57366568,91756.0,91755.0,0.35880738]
[1764327920070,0.63366568,91756.0,91755.0,0.35880738]
[1764327920565,0.63366568,91756.0,91755.0,0.22570738]
[1764327921974,0.63366568,91756.0,91755.0,0.09804738]
[1764327922171,0.63366568,91756.0,91755.0,0.01953738]
[1764327923268,0.0109016,91738.0,91737.0,0.35474]
[1764327923568,0.55364471,91738.0,91737.0,0.35474]
[1764327924070,0.52894471,91738.0,91737.0,0.35474]
[1764327924469,0.15894471,91738.0,91737.0,0.35474]
[1764327924665,0.15894471,91738.0,91737.0,0.35874]
[1764327925271,0.15894471,91738.0,91737.0,0.37695913]
[1764327928070,0.3608,91757.0,91756.0,0.26076]
[1764327928975,0.3608,91778.0,91766.0,0.2716583]
[1764327929162,0.00016351,91776.0,91766.0,0.2716583]
[1764327929575,0.010898,91769.0,91766.0,0.2716583]
[1764327930872,0.3648,91767.0,91766.0,0.2716583]
[1764327931369,0.3648,91767.0,91766.0,0.26076]
[1764327931572,0.0108995,91756.0,91755.0,0.1989]
[1764327931868,0.3808995,91756.0,91755.0,0.1989]
[1764327932075,0.3808995,91756.0,91755.0,0.32725]
[1764327932270,0.3808995,91756.0,91755.0,0.07851]
[1764327932476,0.0109002,91750.0,91746.0,0.07851]
[1764327932666,0.4009002,91750.0,91746.0,0.07851]
[1764327932973,0.4009002,91750.0,91749.0,0.60954]
[1764327933174,0.4009002,91750.0,91749.0,0.62658719]
[1764327934971,0.39,91750.0,91749.0,0.62658719]
[1764327935368,0.4009002,91750.0,91749.0,0.62658719]
[1764327936374,0.39,91750.0,91749.0,0.62658719]
[1764327941185,0.41451633,91750.0,91749.0,0.62658719]
[1764327943382,0.02451633,91750.0,91749.0,0.62658719]
[1764327946289,0.43451633,91750.0,91749.0,0.62658719]
[1764327947184,0.43451633,91750.0,91749.0,0.26578719]
[1764327947885,0.0109003,91749.0,91747.0,0.00016351]
[1764327948092,0.02451633,91748.0,91747.0,0.00016351]
[1764327948292,0.39451633,91748.0,91747.0,0.24890351]
[1764327952988,0.39451633,91748.0,91747.0,0.00016351]
[1764327953192,0.0109016,91738.0,91737.0,0.21437]
[1764327953391,0.57789793,91738.0,91737.0,0.21437]
[1764327954194,0.57789793,91738.0,91737.0,0.34272]
[1764327955295,0.57989793,91738.0,91737.0,0.34272]
[1764327958798,0.56899633,91738.0,91737.0,0.3536218]
[1764327958999,0.17448,91738.0,91737.0,0.7144218]
[1764327959204,0.17448,91738.0,91737.0,0.70352]
[1764327959504,0.17448,91738.0,91737.0,0.34272]
[1764327961609,0.58448,91738.0,91737.0,0.34272]
[1764327962306,0.18448,91738.0,91737.0,0.34272]
[1764327962505,0.17448,91738.0,91737.0,0.34272]
[1764327962711,0.54448,91738.0,91737.0,0.34272]
[1764327968418,0.54448,91738.0,91737.0,0.21437]
[1764327968710,0.5690121,91738.0,91737.0,0.21437]
[1764327969117,0.5690121,91738.0,91737.0,0.09398]
[1764327969808,0.0109025,91731.0,91728.0,0.07976]
[1764327970008,0.3608,91729.0,91728.0,0.07976]
[1764327970211,0.9277321,91729.0,91728.0,0.07976]
[1764327971315,0.0109052,91708.0,91696.0,0.09326144]
[1764327971517,0.0109063,91699.0,91696.0,0.32903144]
[1764327971715,0.19721667,91698.0,91697.0,0.23577]
[1764327971920,0.57721667,91698.0,91697.0,0.23577]
[1764327972308,0.55268,91698.0,91697.0,0.23577]
[1764327974214,0.55768,91698.0,91697.0,0.23577]
[1764327975311,0.0109065,91697.0,91696.0,0.09326144]
[1764327975509,0.3909065,91697.0,91696.0,0.31525144]
[1764327975911,0.17768,91698.0,91697.0,0.22199]
[1764327976113,0.53768,91698.0,91697.0,0.22199]
[1764327976309,0.53768,91698.0,91666.0,0.0109101]
[1764327976310,0.0109077,91687.0,91669.0,0.3608]
[1764327976512,0.6617077,91687.0,91686.0,0.22226267]
[1764327976715,0.22217992,91696.0,91695.0,0.22199]
[1764327976716,0.0001636,91696.0,91695.0,0.22199]
[1764327976915,0.5629236,91696.0,91695.0,0.22199]
[1764327978415,0.5639236,91696.0,91695.0,0.22199]
[1764327978616,0.5709236,91696.0,91695.0,0.22199]
[1764327979319,0.0109068,91695.0,91692.0,0.0623]
[1764327979613,0.4009068,91695.0,91692.0,0.0623]
[1764327980506,0.4009068,91695.0,91694.0,0.22199]
[1764327980708,0.5746668,91695.0,91694.0,0.22199]
[1764327981122,0.5746668,91695.0,91692.0,0.0623]
[1764327981123,0.5786668,91695.0,91692.0,0.0623]
[1764327982120,0.5796668,91695.0,91692.0,0.0623]
[1764327982418,0.0109077,91687.0,91686.0,0.00027267]
[1764327982609,0.0109084,91681.0,91680.0,0.29734]
[1764327982810,0.5836684,91681.0,91680.0,0.29734]
[1764327983618,1.19,91687.0,91680.0,0.29734]
[1764327983619,1.19,91687.0,91686.0,0.22199]
[1764327983814,1.77284,91687.0,91686.0,0.22199]
[1764327985121,1.77584,91687.0,91686.0,0.22199]
[1764327986015,1.77684,91687.0,91686.0,0.22199]
[1764327987510,0.5868,91687.0,91686.0,0.22199]
[1764327988524,0.0001636,91696.0,91695.0,0.2328968]
[1764327988818,3.6e-06,91696.0,91695.0,0.2328968]
[1764327989025,0.17284,91703.0,91695.0,0.2328968]
[1764327989026,0.17284,91703.0,91702.0,0.2328959]
[1764327989720,0.2254249,91711.0,91710.0,0.22199]
[1764327989915,0.6654249,91711.0,91710.0,0.22199]
[1764327990418,0.21552,91703.0,91702.0,0.58279]
[1764327990615,0.001,91703.0,91702.0,0.58279]
[1764327991022,0.0109055,91706.0,91705.0,0.22199]
[1764327991224,0.39,91706.0,91705.0,0.2328955]
[1764327992815,0.391,91706.0,91705.0,0.5936955]
[1764327993726,0.3718674,91720.0,91719.0,0.06575]
[1764327993925,0.0110674,91720.0,91719.0,0.29439]
[1764327994623,0.5952274,91720.0,91719.0,0.29439]
[1764327994819,0.4743036,91720.0,91719.0,0.29439]
[1764327995023,0.0001636,91720.0,91719.0,0.29439]
[1764327996034,0.00027255,91726.0,91725.0,0.22864]
[1764327996231,0.00027255,91726.0,91725.0,0.2395432]
[1764327996734,0.00027255,91726.0,91725.0,0.22864]
[1764327997031,0.01217565,91726.0,91725.0,0.22864]
[1764327997419,0.00427255,91726.0,91725.0,0.22864]
[1764327998621,0.61843255,91726.0,91725.0,0.22864]
[1764327999529,0.22416,91723.0,91722.0,0.3608]
[1764327999733,0.2350644,91715.0,91714.0,0.58944]
[1764327999934,0.6450644,91715.0,91714.0,0.58944]
[1764328000430,0.6450644,91715.0,91714.0,0.47881]
[1764328001225,0.6450644,91715.0,91714.0,0.3608]
[1764328001730,0.11414,91706.0,91705.0,0.22864]
[1764328001923,0.55414,91706.0,91705.0,0.22864]
[1764328002118,0.44,91706.0,91705.0,0.2395455]
[1764328002425,0.2350647,91713.0,91712.0,0.22864]
[1764328002726,0.6050647,91713.0,91712.0,0.22864]
[1764328003635,0.6070647,91713.0,91712.0,0.22864]
[1764328004422,0.22416,91706.0,91705.0,0.11801]
[1764328004621,0.63416,91706.0,91705.0,0.11801]
[1764328004821,0.63416,91706.0,91705.0,0.22864]
[1764328005024,0.003,91713.0,91712.0,0.22864]
[1764328005233,0.004,91713.0,91712.0,0.22864]
[1764328005531,0.433,91713.0,91712.0,0.22864]
[1764328005729,0.65716,91713.0,91712.0,0.22864]
[1764328006125,0.22416,91702.0,91701.0,0.13671161]
[1764328006329,0.6450659,91702.0,91701.0,0.01870161]
[1764328006643,0.0109056,91705.0,91704.0,0.22864]
[1764328006821,0.17276,91708.0,91701.0,0.08445161]
[1764328007023,0.60276,91708.0,91707.0,0.22864]
[1764328008332,0.17276,91708.0,91707.0,0.22864]
[1764328008633,0.42276,91708.0,91707.0,0.22864]
[1764328008837,0.42376,91708.0,91707.0,0.22864]
[1764328009735,0.64792,91708.0,91707.0,0.22864]
[1764328014937,0.42376,91708.0,91707.0,0.2395453]
[1764328015141,0.251,91708.0,91707.0,0.2395453]
[1764328015832,0.36514,91708.0,91707.0,0.2395453]
[1764328016838,0.251,91708.0,91707.0,0.2395453]
[1764328017842,0.001,91708.0,91707.0,0.2395453]
[1764328018941,0.0001636,91715.0,91714.0,0.2395445]
[1764328020745,0.010903,91727.0,91725.0,0.2395432]
[1764328021045,0.67919556,91726.0,91725.0,0.2395432]
[1764328021244,0.67919556,91726.0,91725.0,0.22864]
[1764328022440,0.67919556,91726.0,91725.0,0.2395432]
[1764328022642,0.56917556,91726.0,91725.0,0.2395432]
[1764328023043,0.68609556,91726.0,91725.0,0.2395432]
[1764328023243,0.68909556,91726.0,91725.0,0.2395432]
[1764328023851,0.68809556,91726.0,91725.0,0.2395432]
[1764328024346,0.68709556,91726.0,91725.0,0.2395432]
[1764328024550,0.68909556,91726.0,91725.0,0.2395432]
[1764328024948,0.68709556,91726.0,91725.0,0.2395432]
[1764328025256,0.68809556,91726.0,91725.0,0.2395432]
[1764328026046,0.68809556,91726.0,91725.0,0.25770922]
[1764328026442,0.68909556,91726.0,91725.0,0.24680602]
[1764328026652,0.68909556,91726.0,91725.0,0.25770922]
[1764328027055,0.68909556,91726.0,91725.0,0.24680602]
[1764328028550,0.68909556,91726.0,91725.0,0.13617602]
[1764328028954,0.68909556,91726.0,91725.0,0.01816602]
[1764328029156,0.0109032,91725.0,91712.0,0.0766547]
[1764328029352,0.3608,91720.0,91705.0,0.0109056]
[1764328029560,0.21853,91706.0,91705.0,0.2246256]
[1764328029753,0.61853,91706.0,91705.0,0.2246256]
[1764328029950,0.61853,91706.0,91705.0,0.21372]
[1764328030456,0.61853,91706.0,91705.0,0.21572]
[1764328030856,0.61853,91706.0,91705.0,0.21372]
[1764328031151,0.61853,91706.0,91705.0,0.23354481]
[1764328031558,0.61853,91706.0,91705.0,0.12431481]
[1764328032060,0.4,91706.0,91705.0,0.24445041]
[1764328032247,0.0001636,91715.0,91714.0,0.2246245]
[1764328032448,0.45493542,91715.0,91714.0,0.2246245]
[1764328032656,0.67346542,91715.0,91714.0,0.2246245]
[1764328032858,0.21853,91710.0,91709.0,0.57452]
[1764328033058,0.65853,91710.0,91709.0,0.57452]
[1764328034062,0.671435,91710.0,91709.0,0.57452]
[1764328034365,0.66053,91710.0,91709.0,0.57452]
[1764328035049,0.65953,91710.0,91709.0,0.57452]
[1764328035558,0.66053,91710.0,91709.0,0.57452]
[1764328036048,0.65953,91710.0,91709.0,0.57452]
[1764328036249,0.66053,91710.0,91709.0,0.57452]
[1764328036952,0.65953,91710.0,91709.0,0.57452]
[1764328037754,0.670435,91710.0,91709.0,0.57452]
[1764328038155,0.69431485,91710.0,91709.0,0.57452]
[1764328038646,0.02487985,91710.0,91709.0,0.57452]
[1764328038851,0.0001636,91715.0,91714.0,0.26277]
[1764328039059,0.0001636,91715.0,91714.0,0.2736745]
[1764328039751,0.63289369,91715.0,91714.0,0.10483]
[1764328039954,0.2087554,91706.0,91705.0,0.22938041]
[1764328040258,0.60785,91706.0,91705.0,0.22938041]
[1764328040844,0.41,91706.0,91705.0,0.22938041]
[1764328041056,0.0109047,91713.0,91712.0,0.2736747]
[1764328041262,0.61363721,91713.0,91712.0,0.2736747]
[1764328041444,0.61363721,91713.0,91712.0,0.26277]
[1764328041758,0.61363721,91713.0,91712.0,0.2115547]
[1764328042148,0.2087552,91708.0,91707.0,0.56145]
[1764328042357,0.5887552,91708.0,91707.0,0.56145]
[1764328043260,0.61364301,91708.0,91707.0,0.56145]
[1764328043761,0.61464301,91708.0,91707.0,0.56145]
[1764328043954,0.61464301,91708.0,91707.0,0.46563]
[1764328044354,0.61564301,91708.0,91707.0,0.46563]
[1764328044959,0.2087559,91702.0,91701.0,1e-08]
[1764328045156,0.2087584,91681.0,91680.0,0.3608]
[1764328045352,0.19785,91665.0,91664.0,0.26277]
[1764328045564,0.56785,91665.0,91664.0,0.26277]
[1764328046058,0.0001636,91674.0,91673.0,0.20065]
[1764328047561,0.0011636,91674.0,91673.0,0.20065]
[1764328047761,0.1990136,91674.0,91673.0,0.20065]
[1764328047965,0.5790136,91674.0,91673.0,0.20065]
[1764328048666,0.19785,91672.0,91671.0,0.3608]
[1764328048863,0.56785,91672.0,91671.0,0.56145]
[1764328049365,0.37,91672.0,91671.0,0.56145]
[1764328049949,0.4688,91672.0,91671.0,0.56145]
[1764328050166,0.4698,91672.0,91671.0,0.56145]
[1764328050553,0.56785,91672.0,91671.0,0.56145]
[1764328050757,0.56885,91672.0,91671.0,0.56145]
[1764328051358,0.56985,91672.0,91671.0,0.56145]
[1764328051657,0.57985,91672.0,91671.0,0.55866]
[1764328052665,0.32985,91672.0,91671.0,0.55866]
[1764328052866,0.64985,91672.0,91671.0,0.55866]
[1764328053755,0.452,91672.0,91671.0,0.55866]
[1764328054152,0.002,91672.0,91671.0,0.55866]
[1764328054361,0.202,91672.0,91671.0,0.55866]
[1764328054968,0.002,91672.0,91671.0,0.55866]
[1764328055178,0.001,91672.0,91671.0,0.55866]
[1764328055772,0.0110729,91674.0,91673.0,0.19786]
[1764328055970,0.0001636,91674.0,91673.0,0.19786]
[1764328056859,0.1042829,91674.0,91673.0,0.19886]
[1764328057064,0.0110729,91674.0,91673.0,0.19886]
[1764328057859,0.5988529,91674.0,91673.0,0.19886]
[1764328058364,0.5988529,91674.0,91673.0,0.19786]
[1764328061673,0.2086895,91672.0,91671.0,0.3608]
[1764328061873,0.5986895,91672.0,91671.0,0.3608]
[1764328062974,0.5986895,91672.0,91671.0,0.45945]
[1764328063273,0.4019095,91672.0,91671.0,0.5695696]
[1764328063478,0.4629095,91672.0,91671.0,0.5695696]
[1764328063975,0.5561195,91672.0,91671.0,0.5695696]
[1764328064169,0.5561195,91672.0,91671.0,0.55866]
[1764328064170,0.6606895,91672.0,91671.0,0.55866]
[1764328064368,0.6606895,91672.0,91671.0,0.5695696]
[1764328064568,0.6606895,91672.0,91671.0,0.55866]
[1764328064970,0.6606895,91672.0,91671.0,0.45945]
[1764328065370,0.6596895,91672.0,91671.0,0.3608]
[1764328066173,0.6606895,91672.0,91671.0,0.3608]
[1764328066774,0.6606895,91672.0,91671.0,0.55866]
[1764328068668,0.6606895,91672.0,91671.0,0.5695696]
[1764328068870,0.64978,91672.0,91671.0,0.5695696]
[1764328069571,0.062,91672.0,91671.0,0.5695696]
[1764328070078,0.061,91672.0,91671.0,0.5695696]
[1764328070278,0.06,91672.0,91671.0,0.5695696]
[1764328070775,0.0001636,91674.0,91672.0,0.25666]
[1764328070976,0.0001636,91674.0,91673.0,0.2087694]
[1764328073372,0.0001636,91674.0,91673.0,0.2097694]
[1764328073574,0.0933736,91674.0,91673.0,0.2097694]
[1764328073781,0.1979436,91674.0,91673.0,0.2097694]
[1764328074180,0.22371937,91674.0,91673.0,0.2097694]
[1764328074382,0.22371937,91674.0,91673.0,0.5705694]
[1764328074681,0.02593937,91674.0,91673.0,0.5705694]
[1764328074981,0.41593937,91674.0,91673.0,0.5705694]
[1764328075378,0.41593937,91674.0,91673.0,0.5695694]
[1764328075577,0.61371937,91674.0,91673.0,0.5705694]
[1764328075981,0.61371937,91674.0,91673.0,0.5695694]
[1764328077879,0.61371937,91674.0,91673.0,0.55866]
[1764328079681,0.61371937,91674.0,91673.0,0.45945]
[1764328080486,0.61371937,91674.0,91673.0,0.09865]
[1764328080876,0.19778,91668.0,91667.0,0.55866]
[1764328081079,0.60355577,91668.0,91667.0,0.55866]
[1764328081878,0.61446577,91668.0,91667.0,0.45945]
[1764328082078,0.61446577,91668.0,91667.0,0.3608]
[1764328082278,0.61446577,91668.0,91667.0,0.3628]
[1764328082982,0.2391303,91665.0,91664.0,0.01784371]
[1764328083182,0.1950313,91657.0,91656.0,0.53961]
[1764328083383,0.66080707,91657.0,91656.0,0.53961]
[1764328084386,0.66080707,91657.0,91656.0,0.54461]
[1764328086204,0.66080707,91657.0,91656.0,0.56113035]
[1764328087703,0.64989577,91657.0,91656.0,0.56113035]
[1764328088299,0.62412,91657.0,91656.0,0.56113035]
[1764328088606,0.0974609,91661.0,91658.0,0.05484]
[1764328088805,0.1874609,91661.0,91660.0,0.17881]
[1764328089397,0.5950309,91661.0,91660.0,0.1897209]
[1764328089594,0.22232108,91666.0,91658.0,0.05484]
[1764328089595,0.3608,91692.0,91673.0,0.1897194]
[1764328089798,0.1726,91686.0,91673.0,0.5505194]
[1764328090003,0.0109081,91684.0,91673.0,0.5505194]
[1764328090304,0.1726,91686.0,91673.0,0.5505194]
[1764328091209,0.0011636,91674.0,91673.0,0.5505194]
[1764328092299,0.0867136,91674.0,91673.0,0.5505194]
[1764328092494,0.0001636,91674.0,91673.0,0.5505194]
[1764328092698,0.4101636,91674.0,91673.0,0.5505194]
[1764328093199,0.4967136,91674.0,91673.0,0.5505194]
[1764328094213,0.0001636,91674.0,91673.0,0.5505194]
[1764328094512,0.0109075,91689.0,91688.0,0.2239376]
[1764328094701,0.4209075,91689.0,91688.0,0.2239376]
[1764328095008,0.41,91689.0,91688.0,0.2239376]
[1764328095198,0.3608,91692.0,91691.0,0.1768072]
[1764328095397,0.1782855,91707.0,91706.0,0.1659]
[1764328095604,0.1782855,91707.0,91701.0,0.08278]
[1764328095605,0.1782859,91702.0,91701.0,0.08278]
[1764328095800,0.1782859,91702.0,91698.0,0.5267]
[1764328095801,0.1782863,91699.0,91698.0,0.5267]
[1764328096110,0.6182863,91699.0,91698.0,0.5267]
[1764328096907,0.16738,91698.0,91697.0,0.0001636]
[1764328097208,0.55738,91698.0,91697.0,0.0001636]
[1764328097998,0.55838,91698.0,91697.0,0.0001636]
[1764328098198,0.58769122,91698.0,91697.0,0.0001636]
[1764328100105,0.58369122,91698.0,91697.0,0.0001636]
[1764328100311,0.58669122,91698.0,91697.0,0.0001636]
[1764328100510,0.58769122,91698.0,91697.0,0.0001636]
[1764328101109,0.58669122,91698.0,91697.0,0.0001636]
[1764328101310,0.76025122,91698.0,91697.0,0.0001636]
[1764328101804,0.75625122,91698.0,91697.0,0.0001636]
[1764328102000,0.75925122,91698.0,91697.0,0.0829436]
[1764328102401,0.75925122,91698.0,91697.0,0.1660636]
[1764328103107,0.75925122,91698.0,91697.0,0.0001636]
[1764328103302,0.75525122,91698.0,91697.0,0.0001636]
[1764328103510,0.76025122,91698.0,91697.0,0.0001636]
[1764328103905,0.75625122,91698.0,91697.0,0.0001636]
[1764328104109,0.75925122,91698.0,91697.0,0.0001636]
[1764328104603,0.75925122,91698.0,91697.0,0.1660636]
[1764328105413,0.73394,91698.0,91697.0,0.1660636]
[1764328105613,0.73394,91698.0,91697.0,0.0001636]
[1764328107099,0.75922236,91698.0,91697.0,0.0001636]
[1764328107304,1.12002236,91698.0,91697.0,0.0001636]
[1764328107811,1.12002236,91698.0,91672.0,0.2239406]
[1764328107812,0.16738,91673.0,91672.0,0.2239406]
[1764328108614,0.08566,91673.0,91672.0,0.2239406]
[1764328109015,0.08566,91673.0,91672.0,0.240377]
[1764328109515,0.56738,91673.0,91672.0,0.243377]
[1764328110708,0.56738,91673.0,91672.0,0.1853364]
[1764328113111,0.56738,91673.0,91672.0,0.0194364]
[1764328113818,0.59267455,91673.0,91672.0,0.003]
[1764328115418,0.59367455,91673.0,91672.0,0.003]
[1764328115807,0.1706615,91664.0,91663.0,0.01723319]
[1764328116014,0.5442704,91665.0,91664.0,0.16511]
[1764328116213,1.0494904,91665.0,91664.0,0.16511]
[1764328116517,1.1340204,91665.0,91664.0,0.16511]
[1764328116920,0.15975,91664.0,91663.0,0.01823319]
[1764328117114,0.60975,91664.0,91663.0,0.01823319]
[1764328117914,0.65401,91664.0,91663.0,0.01823319]
[1764328118219,0.65401,91664.0,91663.0,0.0011636]
[1764328118608,0.15975,91650.0,91649.0,0.5368222]
[1764328118817,0.56975,91650.0,91649.0,0.5368222]
[1764328120214,0.56975,91650.0,91649.0,0.5408222]
[1764328120418,0.56975,91650.0,91649.0,0.55758488]
[1764328125728,0.5806621,91650.0,91649.0,0.54667268]
[1764328125922,0.56975,91650.0,91649.0,0.54667268]
[1764328126724,0.48522,91650.0,91649.0,0.54667268]
[1764328127426,0.56975,91650.0,91649.0,0.54667268]
[1764328131623,0.56975,91650.0,91649.0,0.38156268]
[1764328133022,0.56975,91650.0,91649.0,0.54667268]
[1764328133223,0.48522,91650.0,91649.0,0.54667268]
[1764328133424,0.5826,91650.0,91649.0,0.54667268]
[1764328133729,0.65782,91650.0,91649.0,0.54667268]
[1764328134027,0.5826,91650.0,91649.0,0.54667268]
[1764328134233,0.41,91650.0,91649.0,0.54667268]
[1764328136029,0.0001636,91659.0,91658.0,0.2135]
[1764328136232,0.4453836,91659.0,91658.0,0.2135]
[1764328136733,0.5299136,91659.0,91658.0,0.2135]
[1764328137430,0.3701636,91659.0,91658.0,0.2145]
[1764328139730,0.5299136,91659.0,91658.0,0.2145]
[1764328142631,0.5299136,91659.0,91658.0,0.16611]
[1764328142940,0.5299136,91659.0,91658.0,0.15063]
[1764328143840,0.5299136,91659.0,91658.0,0.001]
[1764328144933,0.55546922,91659.0,91658.0,0.001]
[1764328146939,0.3701636,91659.0,91658.0,0.19622]
[1764328148744,0.4394436,91659.0,91658.0,0.19622]
[1764328149638,0.5149336,91659.0,91658.0,0.19622]
[1764328158046,0.5149336,91659.0,91658.0,0.15063]
[1764328164647,0.54050539,91659.0,91658.0,0.15063]
[1764328165454,0.54050539,91659.0,91658.0,0.001]
[1764328165455,0.71306539,91659.0,91658.0,0.001]
[1764328170255,0.58050539,91659.0,91658.0,0.14185]
[1764328170462,0.75306539,91659.0,91658.0,0.14185]
[1764328171062,0.75306539,91659.0,91658.0,0.001]
[1764328171470,0.75306539,91659.0,91658.0,0.14185]
[1764328171654,0.75306539,91659.0,91658.0,0.001]
[1764328178266,0.75306539,91659.0,91658.0,0.06584]
[1764328178571,0.74306539,91659.0,91658.0,0.1353]
[1764328178867,0.74306539,91659.0,91658.0,0.001]
[1764328179368,0.1302,91621.0,91620.0,0.07264155]
[1764328179566,0.63809,91621.0,91620.0,0.14210155]
[1764328179962,0.70276,91621.0,91620.0,0.14210155]
[1764328180558,0.7028796,91621.0,91620.0,0.14310155]
[1764328181273,0.3701196,91621.0,91620.0,0.14310155]
[1764328181466,0.3701196,91621.0,91620.0,0.14810155]
[1764328181666,0.3701196,91621.0,91620.0,0.50890155]
[1764328181869,0.00016372,91630.0,91629.0,0.1452146]
[1764328182064,0.40016372,91630.0,91629.0,0.5060146]
[1764328183267,0.46569372,91630.0,91629.0,0.5070146]
[1764328184862,0.53036372,91630.0,91629.0,0.5070146]
[1764328185379,0.40016372,91630.0,91629.0,0.5060146]
[1764328187078,0.43016372,91630.0,91629.0,0.5060146]
[1764328187475,0.00016372,91630.0,91629.0,0.5060146]
[1764328188077,0.39016372,91630.0,91629.0,0.5060146]
[1764328188572,0.39016372,91630.0,91629.0,0.5070146]
[1764328191770,0.39016372,91630.0,91629.0,0.5060146]
[1764328192181,0.52036372,91630.0,91629.0,0.5060146]
[1764328192677,0.17767678,91630.0,91629.0,0.5060146]
[1764328192881,0.1302,91649.0,91648.0,0.0109122]
[1764328193173,0.4702,91649.0,91648.0,0.0757522]
[1764328193380,0.4702,91649.0,91648.0,0.0109122]
[1764328194567,0.4712,91649.0,91648.0,0.0109122]
[1764328196780,0.4712,91649.0,91648.0,0.1343]
[1764328196973,0.341,91649.0,91644.0,0.0757528]
[1764328197173,0.1302,91645.0,91644.0,0.0757528]
[1764328197473,0.5202,91645.0,91644.0,0.0757528]
[1764328197768,0.5202,91645.0,91644.0,0.0901999]
[1764328198172,0.5202,91645.0,91644.0,0.0253599]
[1764328198378,0.5232,91645.0,91644.0,0.0253599]
[1764328199884,0.5232,91645.0,91644.0,0.0144471]
[1764328200078,0.1302,91640.0,91639.0,0.01107712]
[1764328200286,0.5302,91640.0,91639.0,0.01107712]
[1764328201086,0.5302,91640.0,91639.0,0.14537712]
[1764328201581,0.5312,91640.0,91639.0,0.07591712]
[1764328201788,0.5312,91640.0,91639.0,0.01107712]
[1764328202982,0.5312,91640.0,91639.0,0.02312701]
[1764328203685,0.5322,91640.0,91639.0,0.02312701]
[1764328204085,0.5302,91640.0,91639.0,0.01490969]
[1764328204381,0.12955,91638.0,91637.0,0.0109136]
[1764328204576,0.53955,91638.0,91637.0,0.0109136]
[1764328206490,0.57872,91638.0,91637.0,0.0109136]
[1764328206691,0.58072,91638.0,91637.0,0.0109136]
[1764328211088,0.12955,91630.0,91629.0,0.02527255]
[1764328211286,0.52955,91630.0,91629.0,0.02527255]
[1764328212392,0.52955,91630.0,91629.0,0.09172255]
[1764328212786,0.52955,91630.0,91629.0,0.02527255]
[1764328214391,0.52955,91630.0,91629.0,0.01435805]
[1764328214587,0.03917,91626.0,91622.0,0.0109154]
[1764328214789,0.12932,91623.0,91622.0,0.0109154]
[1764328215092,0.49932,91623.0,91622.0,0.0109154]
[1764328215694,0.49932,91623.0,91610.0,0.0109168]
[1764328215695,0.12282,91612.0,91611.0,0.3608]
[1764328215889,0.57282,91612.0,91611.0,0.3608]
[1764328216495,0.57282,91612.0,91611.0,0.42607]
[1764328217395,0.57282,91612.0,91611.0,0.43107]
[1764328218492,0.57282,91612.0,91611.0,0.43207]
[1764328224101,0.57282,91612.0,91611.0,0.3668]
[1764328228895,0.57282,91612.0,91611.0,0.3658]
[1764328229095,0.57382,91612.0,91611.0,0.3658]
[1764328230302,0.57682,91612.0,91611.0,0.3608]
[1764328230507,0.57682,91612.0,91611.0,0.48992]
[1764328231797,0.74942,91612.0,91611.0,0.48992]
[1764328232903,0.74642,91612.0,91611.0,0.48992]
[1764328233108,0.74942,91612.0,91611.0,0.48992]